bitfinex/quotes_BTCUSD_20220204
["timestamp","ask_amount","ask_price","bid_price","bid_amount"]
[1643989169224,0.02196254,39582.0,39574.0,0.05]
[1643989169225,0.02096254,39582.0,39579.0,0.344501]
[1643989169421,0.02096254,39582.0,39581.0,0.394501]
[1643989169618,0.02096254,39582.0,39581.0,0.80794]
[1643989170218,0.001,39594.0,39584.0,1.75]
[1643989170430,0.08392113,39599.0,39594.0,1.7]
[1643989170623,0.001,39604.0,39598.0,0.05]
[1643989170819,0.156566,39603.0,39602.0,0.05]
[1643989171022,0.3020399,39609.0,39602.0,1.11376487]
[1643989171222,0.001,39611.0,39603.0,1.09454488]
[1643989171420,0.001,39611.0,39603.0,1.14454488]
[1643989171421,0.13114929,39611.0,39603.0,1.14454488]
[1643989171619,0.05,39611.0,39603.0,1.14454488]
[1643989171818,0.001,39606.0,39603.0,1.14454488]
[1643989172320,0.001,39606.0,39604.0,0.0465]
[1643989172517,0.001,39606.0,39605.0,0.75748]
[1643989172518,0.002,39606.0,39605.0,0.75748]
[1643989172731,0.152,39606.0,39605.0,0.75748]
[1643989173155,0.2,39610.0,39605.0,0.75748]
[1643989173356,0.2,39610.0,39605.0,0.80748]
[1643989173955,0.001,39612.0,39605.0,0.80748]
[1643989174158,0.001,39612.0,39611.0,0.05]
[1643989174359,0.001,39612.0,39610.0,0.05]
[1643989174557,0.001,39612.0,39611.0,0.75737]
[1643989174758,0.001,39617.0,39611.0,1.151871]
[1643989174958,0.001,39617.0,39614.0,0.05]
[1643989175158,0.001,39617.0,39614.0,0.80731]
[1643989175363,0.00191932,39615.0,39614.0,1.301811]
[1643989175562,0.00191932,39615.0,39614.0,1.66270717]
[1643989175759,0.011,39619.0,39614.0,1.66270717]
[1643989175760,0.011,39619.0,39615.0,0.04369032]
[1643989175958,0.011,39619.0,39617.0,0.04432435]
[1643989176159,1.0197,39645.0,39619.0,1.75]
[1643989176369,2.32008381,39650.0,39630.0,0.05]
[1643989176370,0.063103,39642.0,39630.0,0.05]
[1643989176652,0.43185807,39648.0,39631.0,2.79324078]
[1643989176653,0.0969,39648.0,39631.0,2.79324078]
[1643989176829,0.0969,39648.0,39646.0,0.37573511]
[1643989177030,0.156566,39647.0,39646.0,0.33080898]
[1643989177230,0.156566,39647.0,39646.0,0.05]
[1643989177628,0.156566,39647.0,39636.0,0.05]
[1643989177829,0.156566,39647.0,39634.0,0.05]
[1643989178029,0.01,39649.0,39633.0,0.05]
[1643989178030,0.14632419,39641.0,39633.0,0.05]
[1643989178237,0.14632419,39641.0,39634.0,0.74693]
[1643989178431,0.43140434,39649.0,39634.0,0.74693]
[1643989178831,0.1412251,39649.0,39635.0,0.05]
[1643989179030,0.1412251,39649.0,39636.0,0.05]
[1643989179231,0.1412251,39649.0,39634.0,0.79693]
[1643989179436,0.1412251,39649.0,39639.0,0.05]
[1643989179633,0.156566,39648.0,39639.0,0.05]
[1643989179832,0.156566,39648.0,39638.0,0.05]
[1643989180032,0.00090648,39645.0,39640.0,0.05]
[1643989180363,0.00090648,39645.0,39635.0,0.15]
[1643989180564,0.00090648,39645.0,39640.0,0.44897719]
[1643989180565,0.00078648,39645.0,39640.0,0.44897719]
[1643989180766,0.00066648,39645.0,39640.0,0.49897719]
[1643989180963,0.00054648,39645.0,39640.0,0.49897719]
[1643989181167,0.1411651,39649.0,39640.0,0.54897719]
[1643989181370,0.1410451,39649.0,39638.0,0.5]
[1643989181565,0.1409251,39649.0,39638.0,0.5]
[1643989181768,0.52725331,39649.0,39638.0,0.5]
[1643989181963,0.05,39648.0,39636.0,0.76689]
[1643989182162,0.1406251,39649.0,39636.0,0.76689]
[1643989182366,2.58022923,39637.0,39636.0,0.76689]
[1643989182566,2.58022923,39637.0,39610.0,0.2333]
[1643989182567,0.07849723,39626.0,39610.0,0.2333]
[1643989182764,0.07837723,39626.0,39617.0,0.5]
[1643989182966,0.0424,39635.0,39617.0,0.5]
[1643989183166,0.04234,39634.0,39617.0,0.5]
[1643989183368,0.29033412,39633.0,39618.0,0.5]
[1643989183564,0.31239338,39629.0,39620.0,0.44546113]
[1643989183764,0.35340212,39633.0,39624.0,0.00066998]
[1643989183969,0.156446,39632.0,39624.0,0.00066998]
[1643989184215,0.33278239,39631.0,39624.0,0.00066998]
[1643989184417,0.32103664,39630.0,39624.0,0.00066998]
[1643989184612,0.32103664,39630.0,39618.0,0.5]
[1643989184613,0.15655,39628.0,39618.0,0.5]
[1643989184812,0.15655,39628.0,39612.0,0.02065487]
[1643989184813,0.219694,39626.0,39624.0,1.24e-06]
[1643989185014,2.01551335,39613.0,39612.0,0.02065487]
[1643989185314,1.35,39612.0,39591.0,0.01]
[1643989185513,0.6374866,39613.0,39591.0,0.01]
[1643989185514,0.33279412,39611.0,39591.0,0.01]
[1643989185714,0.29039412,39611.0,39594.0,0.05]
[1643989185916,0.15655,39610.0,39602.0,0.05]
[1643989186312,0.01885987,39613.0,39594.0,0.05]
[1643989186313,0.15655,39609.0,39594.0,0.05]
[1643989186512,0.16352016,39606.0,39594.0,0.34039412]
[1643989186713,0.16352016,39606.0,39596.0,0.05]
[1643989186913,0.15000982,39613.0,39594.0,0.05]
[1643989187114,0.15000982,39613.0,39594.0,0.14611842]
[1643989187313,0.4495812,39608.0,39602.0,0.43686718]
[1643989187514,0.07980814,39612.0,39602.0,0.43686718]
[1643989187951,0.07980814,39612.0,39603.0,0.09393392]
[1643989188153,0.15000982,39613.0,39603.0,0.14393392]
[1643989188350,0.15000982,39613.0,39604.0,0.10392891]
[1643989188554,0.34806307,39608.0,39606.0,0.00066888]
[1643989188952,0.15655,39607.0,39606.0,0.00066888]
[1643989189452,0.15655,39607.0,39601.0,0.10087547]
[1643989189755,0.15655,39607.0,39605.0,0.09791085]
[1643989189756,0.0424,39607.0,39605.0,0.09791085]
[1643989189952,1.75,39606.0,39605.0,0.09791085]
[1643989190253,0.0424,39606.0,39605.0,0.55555819]
[1643989190753,0.0424,39606.0,39605.0,0.09697]
[1643989191154,0.0424,39606.0,39605.0,0.067596]
[1643989192004,0.19895,39606.0,39605.0,0.067596]
[1643989192208,0.19895,39606.0,39604.0,0.00094087]
[1643989192606,1.84361442,39605.0,39604.0,0.00094087]
[1643989192807,2.14256442,39605.0,39604.0,8.7e-07]
[1643989193005,1.75,39604.0,39591.0,0.01]
[1643989193208,0.19895,39603.0,39591.0,0.15552]
[1643989193406,0.02004096,39601.0,39592.0,0.09703]
[1643989193609,0.06244096,39601.0,39596.0,0.05]
[1643989193812,0.06244096,39601.0,39592.0,0.09703]
[1643989193813,0.02004096,39601.0,39594.0,0.34530866]
[1643989194008,0.02004096,39601.0,39596.0,0.05]
[1643989194205,0.13099498,39616.0,39600.0,0.05]
[1643989194407,0.15655,39615.0,39607.0,0.40857414]
[1643989194612,0.063141,39627.0,39613.0,0.05]
[1643989194808,0.15655,39623.0,39613.0,0.05]
[1643989195009,0.27948871,39631.0,39619.0,0.09221807]
[1643989195206,0.15655,39629.0,39617.0,0.09878132]
[1643989195466,0.48005609,39631.0,39624.0,0.40964055]
[1643989195665,0.0434,39640.0,39624.0,0.40964055]
[1643989195666,0.001,39640.0,39624.0,0.40964055]
[1643989195863,0.28132344,39640.0,39624.0,0.40964055]
[1643989196264,0.27517523,39631.0,39624.0,0.40964055]
[1643989196474,0.27517523,39631.0,39611.0,0.29530866]
[1643989196665,0.27517523,39631.0,39610.0,0.05]
[1643989196866,0.27517523,39631.0,39616.0,0.10408448]
[1643989197065,0.09694301,39623.0,39615.0,0.09260415]
[1643989197263,0.30064993,39630.0,39615.0,0.09260415]
[1643989197264,0.4318434,39630.0,39615.0,0.09260415]
[1643989197468,0.4318434,39630.0,39609.0,0.05]
[1643989197469,0.17532207,39627.0,39609.0,0.05]
[1643989197669,0.28550759,39623.0,39611.0,0.10361381]
[1643989197867,0.29530866,39626.0,39612.0,0.0970088]
[1643989197868,0.15655,39622.0,39612.0,0.0970088]
[1643989198066,0.00090943,39620.0,39613.0,0.0917967]
[1643989198267,0.00090943,39620.0,39614.0,0.05]
[1643989198467,0.00090943,39620.0,39616.0,0.39592568]
[1643989198672,0.00090943,39620.0,39605.0,0.05]
[1643989198673,0.08816028,39617.0,39605.0,0.08575653]
[1643989198869,0.08816028,39617.0,39613.0,0.02190173]
[1643989199110,0.28576233,39616.0,39614.0,0.75731]
[1643989199505,0.08816028,39617.0,39614.0,0.75731]
[1643989199707,0.62005918,39615.0,39614.0,0.75731]
[1643989199905,0.46350918,39615.0,39614.0,0.75731]
[1643989200406,0.063149,39620.0,39614.0,0.75731]
[1643989200607,0.063149,39620.0,39615.0,0.15174971]
[1643989200608,0.00090938,39620.0,39615.0,0.15174971]
[1643989200810,0.00090938,39620.0,39619.0,0.05]
[1643989201007,0.00090938,39620.0,39618.0,0.05]
[1643989201207,0.00090938,39620.0,39614.0,0.75731]
[1643989201409,0.00090938,39620.0,39617.0,0.10496199]
[1643989201612,0.13103936,39625.0,39619.0,0.09748784]
[1643989201809,0.001,39643.0,39619.0,0.05]
[1643989202011,0.001,39643.0,39637.0,0.05]
[1643989202012,0.001,39640.0,39637.0,0.05]
[1643989202208,0.001,39640.0,39639.0,1.4]
[1643989202412,0.001,39640.0,39639.0,0.393831]
[1643989202607,0.001,39640.0,39639.0,0.74713069]
[1643989202870,0.001,39640.0,39639.0,0.80683]
[1643989203759,0.001,39640.0,39639.0,0.75683]
[1643989203958,0.001,39640.0,39633.0,0.05]
[1643989204161,0.001,39640.0,39635.0,0.39691041]
[1643989204560,0.001,39640.0,39636.0,0.75686]
[1643989204770,0.002,39644.0,39638.0,1.75]
[1643989204962,0.09148571,39655.0,39639.0,2.093831]
[1643989205163,0.0007691,39648.0,39642.0,0.343831]
[1643989205360,0.0007691,39648.0,39642.0,0.39024803]
[1643989205563,0.0007691,39648.0,39644.0,0.343831]
[1643989205761,0.0007691,39648.0,39644.0,0.393831]
[1643989205960,0.011,39662.0,39647.0,0.343831]
[1643989206162,0.011,39662.0,39648.0,1.79673887]
[1643989206465,0.011,39662.0,39652.0,1.0]
[1643989206718,0.002,39667.0,39657.0,1.85144978]
[1643989206913,0.002,39667.0,39659.0,0.0477857]
[1643989207118,0.002,39686.0,39660.0,1.10568622]
[1643989207419,0.052,39681.0,39663.0,0.04118104]
[1643989207613,0.052,39681.0,39662.0,1.75]
[1643989207614,0.002,39681.0,39666.0,0.14968673]
[1643989207813,0.002,39681.0,39667.0,0.35056602]
[1643989208013,0.002,39681.0,39668.0,1.100111]
[1643989208215,0.002,39681.0,39669.0,0.43688847]
[1643989208415,0.002,39681.0,39670.0,1.57882863]
[1643989208618,0.002,39681.0,39673.0,1.75]
[1643989208619,0.001,39681.0,39673.0,1.75]
[1643989208827,0.0501,39700.0,39683.0,0.14949834]
[1643989209016,0.0501,39700.0,39684.0,0.50545542]
[1643989209219,0.0501,39700.0,39685.0,0.0426563]
[1643989209419,0.45505929,39688.0,39684.0,0.05]
[1643989209621,0.45505929,39688.0,39685.0,0.75595]
[1643989209622,0.05,39686.0,39685.0,0.75595]
[1643989209819,0.05,39691.0,39685.0,0.75595]
[1643989210020,0.0001,39700.0,39686.0,0.43677704]
[1643989210021,0.06,39699.0,39686.0,0.43677704]
[1643989210377,0.28541836,39692.0,39687.0,0.05]
[1643989210565,0.01,39699.0,39685.0,0.75595]
[1643989210566,0.04976,39688.0,39685.0,0.75595]
[1643989210769,0.0497,39692.0,39689.0,0.34757486]
[1643989210967,0.0497,39692.0,39688.0,0.00012]
[1643989210968,0.04988,39692.0,39688.0,0.00012]
[1643989211165,0.04988,39689.0,39685.0,0.02042548]
[1643989211367,0.00082952,39692.0,39685.0,0.02042548]
[1643989211567,1.4997,39686.0,39685.0,0.02042548]
[1643989211765,0.656441,39686.0,39685.0,0.02042548]
[1643989211964,0.656321,39686.0,39685.0,0.02042548]
[1643989212166,0.156381,39686.0,39685.0,0.02042548]
[1643989212365,0.29220884,39707.0,39685.0,0.02084548]
[1643989212563,0.30220884,39709.0,39694.0,0.00054]
[1643989212764,0.04434,39698.0,39694.0,0.00566]
[1643989212963,0.01,39709.0,39688.0,0.04080466]
[1643989213164,0.04982,39694.0,39691.0,0.06299954]
[1643989213363,0.04976,39694.0,39692.0,0.85790873]
[1643989213568,0.05958,39699.0,39692.0,0.85790873]
[1643989213865,0.01,39709.0,39699.0,1.75]
[1643989213866,0.19576,39709.0,39699.0,1.75]
[1643989214121,0.01,39709.0,39699.0,0.343387]
[1643989214324,0.01,39709.0,39700.0,1.75]
[1643989214520,0.01,39709.0,39701.0,0.393387]
[1643989214718,0.00094,39705.0,39704.0,0.05]
[1643989214921,0.00094,39705.0,39704.0,0.343387]
[1643989215120,0.00094,39705.0,39703.0,0.08455413]
[1643989215121,0.00094,39705.0,39703.0,0.05]
[1643989215321,0.00094,39705.0,39692.0,0.75581]
[1643989215322,0.32704739,39705.0,39692.0,0.75581]
[1643989215520,0.17078939,39705.0,39694.0,0.06299411]
[1643989215717,0.17078939,39705.0,39692.0,0.80581]
[1643989215919,0.17078939,39705.0,39692.0,0.75581]
[1643989215920,0.28878368,39704.0,39692.0,0.75581]
[1643989216124,2.55188034,39694.0,39692.0,0.75581]
[1643989216320,0.31233012,39693.0,39692.0,0.75581]
[1643989217120,0.31233012,39693.0,39692.0,0.75571]
[1643989217326,0.156258,39693.0,39692.0,0.75571]
[1643989217726,2.00088803,39694.0,39692.0,0.80571]
[1643989217985,0.02901631,39694.0,39693.0,2.17690566]
[1643989218177,0.7934,39714.0,39696.0,1.7482]
[1643989218178,0.7862403,39714.0,39696.0,1.7482]
[1643989218377,0.52817574,39710.0,39701.0,0.40825779]
[1643989218773,0.00071,39702.0,39701.0,0.45825779]
[1643989219074,0.00071,39707.0,39701.0,0.04929]
[1643989219274,0.00071,39707.0,39695.0,0.00621262]
[1643989219482,0.00071,39696.0,39692.0,0.22909904]
[1643989219676,0.00071,39693.0,39692.0,0.22909904]
[1643989220074,0.07484508,39695.0,39692.0,0.22909904]
[1643989220275,0.40666614,39696.0,39692.0,0.27909904]
[1643989220476,1.35,39693.0,39692.0,0.22909904]
[1643989220677,1.506788,39693.0,39692.0,0.22909904]
[1643989220875,0.156848,39693.0,39692.0,0.22909904]
[1643989221077,0.156728,39693.0,39692.0,0.22909904]
[1643989221275,1.50520156,39693.0,39692.0,0.22909904]
[1643989221477,1.50520156,39693.0,39691.0,0.00094752]
[1643989221478,1.75,39692.0,39691.0,0.00094752]
[1643989221717,1.905725,39692.0,39691.0,0.00094752]
[1643989221913,2.005605,39692.0,39682.0,0.02386]
[1643989222118,0.00047,39683.0,39682.0,0.02386]
[1643989222315,0.00041,39683.0,39682.0,0.02386]
[1643989222517,0.00035,39683.0,39668.0,0.25200867]
[1643989222721,0.45,39687.0,39665.0,0.04880831]
[1643989222722,0.00035,39669.0,39665.0,0.04880831]
[1643989222915,0.00035,39672.0,39664.0,0.04587294]
[1643989223115,0.00035,39669.0,39661.0,0.01]
[1643989223316,0.00035,39673.0,39666.0,0.00094794]
[1643989223515,0.0424,39681.0,39666.0,0.00094794]
[1643989223516,0.27661939,39681.0,39666.0,0.00094794]
[1643989223715,0.00035,39672.0,39666.0,0.00094794]
[1643989223915,0.00029,39678.0,39671.0,0.04971]
[1643989224115,0.00029,39678.0,39666.0,0.35276993]
[1643989224116,0.05,39693.0,39673.0,0.04983]
[1643989224315,0.00011,39681.0,39674.0,0.09749788]
[1643989224515,0.27277178,39692.0,39679.0,0.00062239]
[1643989224717,1.24994,39681.0,39672.0,0.09390933]
[1643989224914,0.15572908,39680.0,39672.0,0.09390933]
[1643989225114,0.41549323,39682.0,39674.0,0.09972652]
[1643989225115,0.07706553,39677.0,39674.0,0.09972652]
[1643989225364,0.155725,39676.0,39670.0,0.09583827]
[1643989225562,0.41549323,39682.0,39665.0,0.00653371]
[1643989225763,0.90699178,39670.0,39667.0,0.00797764]
[1643989225965,0.33025477,39670.0,39668.0,0.8108204]
[1643989226264,0.33025477,39670.0,39669.0,0.443435]
[1643989226464,0.33025477,39670.0,39669.0,0.80626]
[1643989226665,0.02064759,39689.0,39674.0,0.16779194]
[1643989226868,0.02064759,39689.0,39682.0,0.04995]
[1643989227067,0.02064759,39689.0,39688.0,1.79995]
[1643989227268,0.08908,39695.0,39688.0,1.79995]
[1643989227269,0.08908,39695.0,39688.0,0.393485]
[1643989227464,0.08908,39695.0,39689.0,0.343485]
[1643989227664,0.08908,39695.0,39690.0,0.75586]
[1643989227665,0.26203957,39695.0,39690.0,0.75586]
[1643989227868,0.26191957,39695.0,39690.0,0.80586]
[1643989228064,0.08872,39695.0,39690.0,0.149345]
[1643989228266,0.08866,39695.0,39690.0,0.149345]
[1643989228463,0.08848,39695.0,39690.0,0.149345]
[1643989228666,0.08842,39695.0,39690.0,0.149345]
[1643989228867,0.34322,39694.0,39690.0,0.149345]
[1643989229116,0.3431,39694.0,39690.0,0.149345]
[1643989229304,0.34363637,39693.0,39690.0,0.149345]
[1643989229503,0.155893,39692.0,39690.0,0.149345]
[1643989229908,1.51647577,39691.0,39690.0,0.149345]
[1643989230104,1.90585477,39691.0,39690.0,0.149345]
[1643989230304,0.95585477,39691.0,39690.0,0.149345]
[1643989230505,0.342979,39691.0,39690.0,0.199345]
[1643989230713,0.08842,39695.0,39690.0,0.199345]
[1643989230906,0.08842,39695.0,39691.0,0.343346]
[1643989231107,0.08842,39695.0,39694.0,0.74995]
[1643989231307,0.08842,39695.0,39690.0,0.249295]
[1643989231505,0.08842,39695.0,39690.0,0.199345]
[1643989231910,0.08842,39695.0,39690.0,0.149345]
[1643989232108,0.343346,39694.0,39690.0,0.149345]
[1643989232309,0.08842,39695.0,39692.0,0.04995]
[1643989232510,0.08842,39695.0,39690.0,0.149345]
[1643989233162,0.17446337,39700.0,39690.0,0.149345]
[1643989233163,0.17438794,39692.0,39690.0,0.149345]
[1643989233363,0.343346,39691.0,39690.0,0.149345]
[1643989233562,1.205526,39691.0,39690.0,0.149345]
[1643989233764,1.205526,39691.0,39679.0,0.01896603]
[1643989233765,0.14994,39687.0,39679.0,0.01896603]
[1643989233965,0.201926,39686.0,39670.0,0.5]
[1643989234172,0.201926,39686.0,39661.0,0.06016]
[1643989234173,0.14994,39679.0,39661.0,0.06016]
[1643989234364,0.06896603,39680.0,39662.0,0.630138]
[1643989234376,0.19994,39674.0,39662.0,0.630138]
[1643989234564,1.80005,39677.0,39645.0,0.05]
[1643989234565,0.14994,39671.0,39645.0,0.05]
[1643989234762,1.75,39672.0,39645.0,0.05]
[1643989234763,0.343437,39670.0,39645.0,0.05]
[1643989234960,0.063077,39667.0,39645.0,0.05]
[1643989235165,0.686783,39666.0,39645.0,0.05]
[1643989235360,0.55,39651.0,39645.0,0.035]
[1643989235561,1.15,39652.0,39645.0,0.035]
[1643989235562,0.43015546,39652.0,39645.0,0.035]
[1643989235763,0.443346,39666.0,39650.0,0.04995]
[1643989235764,0.297037,39665.0,39650.0,0.04995]
[1643989235966,0.343346,39664.0,39651.0,0.297037]
[1643989236161,0.0464,39663.0,39658.0,0.04995]
[1643989236364,0.0464,39663.0,39658.0,0.09204014]
[1643989236641,0.0464,39663.0,39659.0,0.00068293]
[1643989236642,0.22792975,39663.0,39659.0,0.00068293]
[1643989236825,0.05,39660.0,39648.0,0.05]
[1643989237025,2.047037,39662.0,39641.0,0.03506961]
[1643989237026,0.08955289,39646.0,39641.0,0.03506961]
[1643989237230,0.08955289,39646.0,39643.0,0.343346]
[1643989237429,0.08955289,39646.0,39645.0,0.343346]
[1643989237627,0.08955289,39646.0,39645.0,1.100066]
[1643989237831,0.33275036,39650.0,39645.0,1.099066]
[1643989238028,0.05,39646.0,39645.0,0.75672]
[1643989238229,0.33275036,39650.0,39645.0,0.8536]
[1643989238427,0.05,39649.0,39645.0,0.8536]
[1643989238929,0.05,39649.0,39646.0,0.12614775]
[1643989239129,0.05,39648.0,39647.0,0.75668]
[1643989239729,0.4943156,39648.0,39647.0,0.75668]
[1643989239929,0.5407156,39648.0,39647.0,0.75668]
[1643989241557,0.8843216,39648.0,39647.0,0.75668]
[1643989242157,0.8343216,39648.0,39647.0,0.75668]
[1643989242358,0.8793216,39648.0,39647.0,0.75668]
[1643989242660,0.0914,39648.0,39647.0,0.80668]
[1643989242858,0.0914,39648.0,39647.0,0.81168]
[1643989243062,0.045,39648.0,39647.0,0.81168]
[1643989243360,0.2961382,39656.0,39648.0,0.00086417]
[1643989243558,1.19413744,39649.0,39648.0,0.00086417]
[1643989243760,1.5251326,39649.0,39648.0,0.00086417]
[1643989243958,0.38774344,39649.0,39648.0,0.00086417]
[1643989244211,0.23254272,39649.0,39648.0,0.00086417]
[1643989244412,0.08682472,39641.0,39634.0,0.2961382]
[1643989244613,0.04413744,39644.0,39640.0,0.00586256]
[1643989244813,0.36385723,39643.0,39641.0,0.00586256]
[1643989245014,0.36385723,39643.0,39641.0,0.12615524]
[1643989245214,0.36385723,39643.0,39641.0,0.03432395]
[1643989245414,0.36385723,39643.0,39641.0,0.05]
[1643989245415,0.54106272,39643.0,39641.0,0.05]
[1643989245619,0.09003,39647.0,39641.0,0.05]
[1643989245815,0.12003,39647.0,39640.0,0.05]
[1643989246014,0.03,39647.0,39644.0,0.36105153]
[1643989246220,0.03,39647.0,39646.0,1.75]
[1643989246415,0.10077071,39674.0,39646.0,2.09364]
[1643989246618,0.10077071,39674.0,39659.0,0.05]
[1643989246816,0.14622,39673.0,39659.0,0.05]
[1643989247016,0.146248,39672.0,39666.0,0.05]
[1643989247218,0.00348274,39675.0,39659.0,0.05]
[1643989247219,0.37452468,39670.0,39659.0,0.05]
[1643989247417,0.146248,39669.0,39657.0,0.0009434]
[1643989247618,0.1597827,39664.0,39657.0,0.0009434]
[1643989248270,0.1597827,39664.0,39657.0,0.09721013]
[1643989248271,0.39712233,39662.0,39657.0,0.09721013]
[1643989248468,0.1597827,39664.0,39658.0,0.09782405]
[1643989248667,0.063063,39672.0,39661.0,0.05]
[1643989248870,0.063063,39672.0,39662.0,0.05]
[1643989249068,0.063063,39672.0,39662.0,0.04956938]
[1643989249267,0.00043062,39666.0,39662.0,0.15460791]
[1643989249470,0.01952695,39670.0,39662.0,0.04956938]
[1643989249471,0.00043062,39663.0,39662.0,0.04956938]
[1643989249672,0.28737337,39663.0,39662.0,0.80638]
[1643989249870,0.28737337,39663.0,39662.0,0.75638]
[1643989250069,0.08711849,39663.0,39662.0,0.75638]
[1643989251271,0.2313725,39663.0,39662.0,0.80638]
[1643989251468,0.2313725,39663.0,39662.0,0.75638]
[1643989251706,2.41362,39662.0,39657.0,0.00094338]
[1643989251905,0.32236648,39658.0,39657.0,0.00094338]
[1643989252105,0.46861448,39658.0,39657.0,0.75716193]
[1643989252309,1.5,39657.0,39646.0,0.09714967]
[1643989252508,1.75043062,39651.0,39646.0,0.126164]
[1643989252709,1.89667862,39651.0,39641.0,0.063096]
[1643989252904,0.24667862,39651.0,39641.0,0.063096]
[1643989253105,0.53024466,39651.0,39641.0,0.063096]
[1643989253306,0.09035617,39644.0,39636.0,0.01216515]
[1643989253707,0.00043062,39637.0,39636.0,0.00716515]
[1643989253905,0.00043062,39637.0,39636.0,0.09742886]
[1643989254105,0.00043062,39637.0,39636.0,0.09977255]
[1643989254305,0.16061157,39642.0,39636.0,0.09977255]
[1643989254306,0.00043062,39641.0,39636.0,0.09977255]
[1643989254504,0.44074242,39637.0,39636.0,0.09977255]
[1643989254704,0.09808952,39638.0,39636.0,0.09977255]
[1643989254905,0.09852014,39638.0,39635.0,0.12619577]
[1643989255106,0.00043062,39646.0,39636.0,0.09672912]
[1643989255366,0.00043062,39646.0,39641.0,0.04956938]
[1643989255559,0.40730948,39646.0,39637.0,0.34770781]
[1643989255758,0.00043062,39644.0,39635.0,0.17576515]
[1643989256063,0.146248,39645.0,39635.0,0.12619577]
[1643989256259,0.40687886,39646.0,39636.0,0.05]
[1643989256260,0.07592984,39637.0,39636.0,0.05]
[1643989256460,0.146248,39645.0,39636.0,0.05]
[1643989256859,0.16174462,39643.0,39636.0,0.05]
[1643989257059,0.146248,39642.0,39639.0,0.00094115]
[1643989258061,0.0424,39645.0,39631.0,0.08135839]
[1643989258062,0.15243189,39634.0,39631.0,0.08135839]
[1643989258261,0.07418994,39633.0,39631.0,0.08135839]
[1643989258766,0.0424,39645.0,39631.0,0.14446615]
[1643989258961,1.017,39661.0,39642.0,0.05]
[1643989258962,0.0424,39650.0,39642.0,0.05]
[1643989259405,0.0424,39650.0,39644.0,0.00094106]
[1643989259406,0.19138683,39646.0,39644.0,0.00094106]
[1643989259606,0.61329405,39645.0,39644.0,0.00094106]
[1643989260307,0.146248,39645.0,39644.0,0.05094106]
[1643989260511,0.18264172,39658.0,39645.0,0.10164158]
[1643989260711,0.146248,39657.0,39649.0,0.05]
[1643989260911,0.146248,39657.0,39646.0,0.12615]
[1643989261108,0.18264172,39658.0,39648.0,0.06308578]
[1643989261315,0.9,39655.0,39641.0,0.23369348]
[1643989261513,0.08096699,39653.0,39641.0,0.42]
[1643989261709,0.08096699,39653.0,39642.0,0.10105291]
[1643989261910,0.08096699,39653.0,39643.0,0.09393304]
[1643989262109,0.41818783,39656.0,39645.0,0.09188378]
[1643989262321,0.16162993,39653.0,39648.0,0.06308578]
[1643989262510,0.16162993,39653.0,39645.0,0.10344207]
[1643989262961,0.16162993,39653.0,39643.0,0.12617241]
[1643989262962,0.05,39652.0,39643.0,0.12617241]
[1643989263163,0.08842065,39647.0,39644.0,0.05]
[1643989263366,0.05,39652.0,39646.0,0.1261727]
[1643989263565,0.05,39652.0,39646.0,0.71877141]
[1643989263764,0.00026059,39653.0,39646.0,0.62385636]
[1643989263971,0.35463877,39655.0,39647.0,0.08805218]
[1643989264169,0.00026059,39653.0,39648.0,0.05]
[1643989264565,0.00026059,39653.0,39649.0,0.16348355]
[1643989264768,0.00026059,39653.0,39651.0,0.343458]
[1643989265068,0.00104226,39657.0,39653.0,0.14995183]
[1643989265266,0.05,39657.0,39654.0,1.23336313]
[1643989265465,0.66362,39662.0,39656.0,0.34425496]
[1643989265668,0.66362,39662.0,39657.0,0.16807203]
[1643989265866,0.66362,39662.0,39658.0,0.22557234]
[1643989266065,0.66362,39662.0,39659.0,0.14114352]
[1643989266269,0.66362,39662.0,39658.0,0.12611881]
[1643989266709,0.66362,39662.0,39659.0,0.16447788]
[1643989266710,0.6638808,39662.0,39659.0,0.16447788]
[1643989267109,0.05,39660.0,39659.0,0.12612007]
[1643989267509,0.05,39660.0,39654.0,0.75653]
[1643989267712,0.42411451,39661.0,39654.0,0.75653]
[1643989267713,0.05,39655.0,39654.0,0.75653]
[1643989267908,0.07537819,39659.0,39654.0,0.75653]
[1643989267909,0.05,39657.0,39654.0,0.75653]
[1643989268109,0.9,39655.0,39654.0,0.98525076]
[1643989268308,0.05,39655.0,39654.0,0.81960804]
[1643989270011,0.146248,39654.0,39651.0,0.11173332]
[1643989270211,0.146248,39654.0,39651.0,0.22479932]
[1643989270470,0.00086803,39656.0,39653.0,0.126126]
[1643989270869,0.00086803,39656.0,39654.0,0.09346729]
[1643989271066,0.00086803,39656.0,39654.0,0.10310989]
[1643989271267,0.146248,39657.0,39655.0,0.09272478]
[1643989271467,0.146248,39657.0,39654.0,0.22126309]
[1643989271671,0.146248,39654.0,39653.0,0.05]
[1643989274222,0.789775,39662.0,39654.0,0.126127]
[1643989274223,0.05,39661.0,39654.0,0.126127]
[1643989274415,0.66362,39662.0,39655.0,0.09542002]
[1643989274716,0.66362,39662.0,39656.0,0.063063]
[1643989274717,0.146248,39661.0,39656.0,0.063063]
[1643989274915,0.146248,39661.0,39657.0,0.06306639]
[1643989275214,0.05,39658.0,39657.0,0.06306639]
[1643989275413,0.196248,39658.0,39657.0,0.06306639]
[1643989275613,0.146248,39658.0,39657.0,0.06306639]
[1643989275813,0.146248,39658.0,39657.0,0.12612839]
[1643989276013,0.146248,39658.0,39657.0,0.17612839]
[1643989276613,0.146248,39658.0,39657.0,0.11306639]
[1643989276824,0.0694,39664.0,39657.0,0.11306639]
[1643989276825,0.001,39674.0,39659.0,0.343458]
[1643989277017,0.001,39674.0,39661.0,0.343458]
[1643989277317,0.001,39674.0,39657.0,0.05]
[1643989277318,0.01805304,39670.0,39656.0,0.16765426]
[1643989277514,0.001,39674.0,39656.0,0.16765426]
[1643989277515,0.0007,39674.0,39657.0,2.093484]